bitfinex/quotes_ETHUSD_20240607
["timestamp","ask_amount","ask_price","bid_price","bid_amount"]
[1717763766097,0.75,3794.5,3793.5,0.04262236]
[1717763766394,2.63502,3795.1,3793.7,2.63592]
[1717763766524,2.898522,3795.1,3793.7,2.63592]
[1717763766728,2.898522,3795.1,3793.8,0.04191067]
[1717763768431,3.38535,3794.6,3793.4,0.008]
[1717763768700,3.38535,3794.6,3793.1,2.63631]
[1717763768910,0.53588445,3795.0,3793.6,2.63601]
[1717763769087,1.89718273,3795.5,3792.9,2.2757]
[1717763769088,0.75,3794.7,3794.1,2.63563]
[1717763769290,0.75,3795.3,3794.1,2.63563]
[1717763769450,0.75,3795.6,3794.2,0.03869761]
[1717763769744,0.59088939,3795.9,3794.6,2.63527]
[1717763769949,0.59088939,3795.9,3793.7,0.008]
[1717763769950,0.75,3795.5,3794.9,2.63508]
[1717763770191,0.41280377,3795.9,3795.0,0.03861626]
[1717763770486,0.41280377,3795.9,3793.7,3.0]
[1717763770487,2.63455,3795.8,3794.5,2.63534]
[1717763770990,2.63476,3795.5,3794.6,0.03868733]
[1717763771158,0.338476,3795.4,3794.6,2.6353]
[1717763771360,2.63449,3795.9,3794.7,0.03866956]
[1717763771602,2.63449,3795.9,3794.6,2.6353]
[1717763771751,2.63468,3795.6,3794.6,2.6353]
[1717763772098,2.63468,3795.6,3793.8,0.008]
[1717763772397,2.63457,3795.7,3794.3,2.6355]
[1717763772546,2.63476,3795.4,3794.4,0.03872287]
[1717763772745,2.63476,3795.4,3794.5,2.63537]
[1717763772950,3.04725408,3795.8,3794.7,2.63523]
[1717763773299,0.41275408,3795.8,3795.2,2.63489]
[1717763773453,0.41275408,3795.8,3795.5,2.63464]
[1717763773796,1.32734424,3796.7,3795.6,0.03833455]
[1717763773797,2.63388,3796.7,3795.6,0.03833455]
[1717763774086,0.53588445,3797.1,3795.6,0.03833455]
[1717763774087,2.63434,3796.1,3795.6,0.03833455]
[1717763774404,2.63434,3796.1,3793.9,5.04329]
[1717763774405,2.63434,3796.1,3795.7,0.03831679]
[1717763774544,0.53588445,3796.4,3795.7,0.03831679]
[1717763774765,0.53588445,3796.4,3794.4,0.008]
[1717763774766,2.63449,3795.8,3794.4,0.008]
[1717763774960,0.37972109,3795.8,3794.5,0.03839624]
[1717763775196,0.53588445,3796.0,3793.9,2.4075]
[1717763775372,0.53588445,3796.0,3794.6,0.03837847]
[1717763775373,2.63436,3796.0,3794.6,0.03837847]
[1717763775572,0.41272093,3796.1,3793.9,2.4155]
[1717763775573,2.63489,3795.3,3793.9,2.4155]
[1717763775809,0.80502013,3795.9,3794.0,0.03713138]
[1717763775977,0.53588445,3795.2,3794.0,0.03713138]
[1717763776179,3.17088445,3795.1,3793.5,0.008]
[1717763776508,0.53588445,3795.5,3793.9,2.63574]
[1717763776707,2.63466,3795.6,3793.9,2.63574]
[1717763776917,0.53588445,3795.9,3794.1,2.6356]
[1717763777094,0.53588445,3796.0,3794.2,2.6018321]
[1717763777411,3.16997445,3796.4,3794.2,2.63650797]
[1717763777567,3.16997445,3796.4,3794.3,0.55]
[1717763777762,2.63436,3796.0,3794.4,0.03457465]
[1717763778010,2.63456,3795.7,3794.4,0.03457465]
[1717763778172,0.30470649,3795.9,3794.4,0.03457465]
[1717763778367,0.30470649,3795.9,3794.7,2.63521]
[1717763778573,0.41270493,3796.1,3795.0,2.63499]
[1717763778782,0.41270493,3796.1,3795.2,2.63484]
[1717763779029,0.41270493,3796.1,3795.3,0.03441474]
[1717763779484,0.41270493,3796.1,3795.4,2.63472]
[1717763779815,0.41270493,3796.1,3795.7,2.6345]
[1717763780129,1.04304608,3797.7,3795.7,2.6345]
[1717763780130,2.63346,3797.3,3795.7,2.6345]
[1717763780419,0.94851093,3797.1,3795.9,2.6344]
[1717763780723,0.94851093,3797.1,3795.4,2.63476]
[1717763780724,0.25030802,3797.0,3795.4,2.63476]
[1717763781011,0.41262648,3797.1,3795.4,2.63476]
[1717763781220,0.41262648,3797.1,3794.6,5.63526]
[1717763781221,0.41262648,3797.1,3795.5,0.03437921]
[1717763781724,0.41262648,3797.1,3796.3,2.6341]
[1717763782073,2.63372,3797.0,3796.4,0.03421939]
[1717763782278,7.902,3796.5,3796.4,9.39e-06]
[1717763782481,7.902,3796.5,3794.5,0.008]
[1717763782482,2.63497,3795.2,3794.5,0.008]
[1717763782679,2.63453,3795.8,3794.6,2.63526]
[1717763782904,0.53588445,3796.8,3794.6,0.02894946]
[1717763782905,2.63487,3795.3,3794.6,0.02894946]
[1717763783220,2.63487,3795.3,3794.0,2.63573]
[1717763783429,2.63509,3795.0,3794.7,0.02705246]
[1717763783721,2.63509,3795.0,3793.9,2.63579]
[1717763783897,0.0437215,3794.9,3794.2,2.63555]
[1717763784108,0.0437215,3794.9,3794.5,2.63534]
[1717763784477,0.0437215,3794.9,3794.7,2.63525]
[1717763784821,0.0437215,3794.9,3794.8,0.02597828]
[1717763785322,0.0437215,3794.9,3794.6,2.63528]
[1717763785619,0.0437215,3794.9,3794.8,2.63518]
[1717763785987,1.5e-06,3794.9,3794.8,7.93151828]
[1717763786178,0.53588445,3796.2,3794.8,0.02597828]
[1717763786425,0.75,3795.6,3793.7,2.63588]
[1717763786588,0.13404537,3796.1,3792.3,2.6369]
[1717763786589,2.63479,3795.4,3792.8,0.008]
[1717763786797,2.63529,3794.7,3793.3,2.66225742]
[1717763787127,0.75,3794.9,3794.2,2.63557]
[1717763787296,0.53588445,3795.4,3793.3,0.02607742]
[1717763787491,0.13404537,3795.3,3794.3,0.02589964]
[1717763787692,2.63535,3794.6,3794.3,0.02589964]
[1717763788138,2.63535,3794.6,3793.5,2.63602]
[1717763788420,0.75,3794.6,3793.6,0.02602407]
[1717763788634,2.6355,3794.4,3793.6,0.02602407]
[1717763788780,2.6355,3794.4,3793.3,2.63618]
[1717763788981,2.63522,3794.8,3793.6,2.63598]
[1717763789183,2.63548,3794.4,3793.7,0.02600629]
[1717763789416,0.75,3794.7,3793.7,2.6359]
[1717763789417,2.63526,3794.7,3793.7,2.6359]
[1717763789618,2.63496,3795.2,3794.0,2.63569]
[1717763789847,0.75,3795.0,3793.8,0.02598851]
[1717763789992,2.63569,3794.1,3792.7,0.008]
[1717763790191,2.63536,3794.6,3793.4,2.63611]
[1717763790453,3.17078445,3795.3,3792.4,0.008]
[1717763790734,2.63559,3794.3,3793.3,2.63617]
[1717763790941,0.263559,3794.2,3793.3,2.63617]
[1717763791091,0.263559,3794.2,3792.4,0.06099707]
[1717763791092,2.63592,3793.8,3792.5,2.63675]
[1717763791297,2.63597,3793.7,3792.4,0.06099707]
[1717763791932,2.63597,3793.7,3792.7,2.63659]
[1717763792089,2.63569,3794.1,3792.7,2.63659]
[1717763792295,0.75,3793.9,3792.4,0.06099707]
[1717763792493,0.75,3793.9,3793.6,2.63595]
[1717763792899,2.63487,3795.3,3794.1,2.63566]
[1717763793242,0.53588445,3795.6,3793.4,2.63611]
[1717763793400,2.6346,3795.7,3793.4,2.63611]
[1717763793401,2.6346,3795.7,3793.5,0.55]
[1717763793622,2.6346,3795.7,3793.1,6.1944]
[1717763793623,2.63487,3795.3,3794.2,2.63558]
[1717763794072,0.53588445,3796.0,3794.5,2.63536]
[1717763794073,2.6346,3795.7,3794.5,2.63536]
[1717763794568,0.53588445,3796.3,3793.1,5.4524]
[1717763794758,0.75,3796.0,3793.1,2.4444]
[1717763794922,2.63487,3795.3,3794.1,2.63565]
[1717763795351,2.63509,3795.0,3793.1,2.4444]
[1717763795574,2.63479,3795.4,3794.2,2.63554]
[1717763795874,0.263479,3795.3,3794.2,2.63554]
[1717763796053,2.63479,3795.4,3794.2,2.63554]
[1717763796234,0.53588445,3796.0,3794.5,2.63537]
[1717763796433,2.63472,3795.5,3794.5,2.63537]
[1717763797537,2.63472,3795.5,3794.4,2.63544]
[1717763797741,1.10555735,3796.1,3794.7,2.6352]
[1717763797742,2.63446,3795.9,3794.7,2.6352]
[1717763798049,2.63446,3795.9,3794.8,0.02532332]
[1717763798436,3.38446,3795.9,3794.8,0.02532332]
[1717763798764,0.80456928,3796.5,3794.8,0.02532332]
[1717763798765,2.63419,3796.3,3794.8,0.02532332]
[1717763799068,2.63419,3796.3,3795.2,2.63487]
[1717763799368,2.6339,3796.7,3795.1,2.2582]
[1717763799552,1.16270601,3797.0,3795.8,2.63447]
[1717763799860,0.53588445,3797.0,3795.9,0.02480993]
[1717763800065,0.75,3796.6,3795.9,0.02480993]
[1717763800262,2.63431,3796.1,3795.2,2.63486]
[1717763800469,2.63431,3796.1,3796.0,0.02479217]
[1717763800641,2.63431,3796.1,3795.2,2.63486]
[1717763800964,1.61252921,3797.0,3796.0,0.02489896]
[1717763800965,1.10536758,3797.0,3796.0,0.02489896]
[1717763801143,2.63403,3796.5,3795.3,2.63477]
[1717763801341,2.63403,3796.5,3796.1,0.02488363]
[1717763801540,2.63403,3796.5,3795.3,2.63477]
[1717763801926,2.63403,3796.5,3795.5,2.63465]
[1717763802362,2.63403,3796.5,3795.6,0.02497242]
[1717763802748,0.53588445,3796.7,3795.7,2.6345]
[1717763802951,3.43834928,3796.9,3795.6,0.02497242]
[1717763802952,3.16966445,3796.9,3796.0,2.63434]
[1717763803153,3.16966445,3796.9,3795.6,0.02497242]
[1717763803154,0.53588445,3797.0,3796.3,2.63408]
[1717763803338,2.63367,3797.0,3796.1,0.02479626]
[1717763803538,0.94858386,3797.1,3796.4,0.02474299]
[1717763803539,2.63394,3796.6,3796.4,0.02474299]
[1717763803954,2.63431,3796.1,3795.1,2.63491]
[1717763804271,0.263431,3796.1,3795.3,2.6348]
[1717763804467,3.16994445,3796.5,3795.3,2.6348]
[1717763804673,0.53588445,3796.5,3795.6,2.63461]
[1717763804844,0.53588445,3796.8,3795.9,2.63441]
[1717763805182,2.63378,3796.9,3795.9,2.63441]
[1717763805183,0.53588445,3796.7,3795.9,2.63441]
[1717763805331,0.53588445,3796.7,3796.0,0.0248674]
[1717763805532,0.53588445,3796.7,3795.9,2.63441]
[1717763805834,2.63416,3796.3,3795.4,2.6347]
[1717763806233,2.63416,3796.3,3794.3,2.63549]
[1717763806234,2.63416,3796.3,3795.5,0.0249562]
[1717763806432,0.53588445,3795.9,3795.5,0.0249562]
[1717763806729,0.53588445,3795.9,3795.6,2.63461]
[1717763806958,3.17010445,3796.2,3795.6,0.0247151]
[1717763807168,2.63435,3796.0,3795.6,0.0247151]
[1717763807490,0.53588445,3795.8,3795.2,2.63485]
[1717763807692,0.53588445,3795.7,3795.2,2.63485]
[1717763807830,0.53588445,3795.7,3795.6,2.63462]
[1717763808138,0.80456928,3795.9,3795.6,2.65937636]
[1717763808139,0.53662661,3795.9,3795.6,2.65937636]
[1717763808338,3.96881186,3796.5,3795.6,2.65937636]
[1717763808339,0.53662661,3795.8,3795.6,2.65937636]
[1717763808528,1.04304608,3796.2,3795.6,2.65937636]
[1717763808529,0.53662661,3795.9,3795.6,2.65937636]
[1717763808754,0.53662661,3796.0,3795.6,2.63462]
[1717763808969,0.53662661,3796.1,3795.8,2.63442]
[1717763809380,0.53662661,3796.0,3795.9,0.02467638]
[1717763809734,0.53662661,3796.0,3795.8,2.63442]
[1717763810875,0.53662661,3796.1,3795.8,2.63442]
[1717763811231,0.53662661,3796.0,3795.8,2.63442]
[1717763811664,0.53662661,3795.9,3795.4,2.63472]
[1717763811848,0.53662661,3795.9,3795.7,2.63455]
[1717763812057,0.53662661,3796.0,3795.7,2.63455]
[1717763812292,0.53662661,3796.1,3796.0,2.63435]
[1717763812482,0.53662661,3796.3,3796.0,2.63435]
[1717763812644,0.53662661,3796.3,3796.0,2.65892125]
[1717763812833,0.53662661,3796.2,3796.0,2.63435]
[1717763813038,0.53662661,3796.2,3796.1,0.0245535]
[1717763813238,0.53662661,3796.3,3796.2,2.63421]
[1717763813481,0.53662661,3796.5,3796.2,2.63421]
[1717763813675,0.53662661,3796.5,3796.2,2.65869964]
[1717763813863,0.53662661,3796.8,3796.4,2.63401]
[1717763814386,0.53662661,3796.8,3796.6,2.63393]
[1717763814738,0.53662661,3796.8,3796.7,0.02430382]
[1717763815377,0.53662661,3796.9,3796.7,0.02430382]
[1717763816077,0.53662661,3796.9,3796.8,0.02708763]
[1717763816280,0.53662661,3797.0,3796.9,2.63372]
[1717763816489,0.53662661,3797.0,3796.8,0.02708763]
[1717763816656,0.53662661,3797.0,3796.6,2.63392]
[1717763816986,0.94932602,3797.1,3796.9,0.02513118]
[1717763817286,0.41269941,3797.1,3797.0,0.02704387]
[1717763817449,0.53662661,3797.4,3797.1,2.63357]
[1717763817650,0.53662661,3797.5,3797.1,2.63357]
[1717763817875,0.53662661,3797.5,3797.2,0.03458697]
[1717763818047,0.53662661,3797.5,3797.1,2.63357]
[1717763818458,0.53662661,3797.6,3797.1,2.63357]
[1717763818868,0.53662661,3797.5,3797.3,2.63345]
[1717763819285,0.53662661,3797.5,3797.4,0.03831018]
[1717763819496,0.53662661,3797.8,3797.4,0.03831018]
[1717763819952,0.53662661,3797.8,3797.3,2.63345]
[1717763820153,0.53662661,3797.8,3794.8,0.008]
[1717763820154,0.53662661,3797.8,3795.8,0.2634]
[1717763820353,0.53662661,3797.8,3795.7,2.63455]
[1717763820570,0.53662661,3797.9,3797.6,2.63323]
[1717763820912,0.53662661,3797.9,3796.8,2.63378]
[1717763820913,0.53662661,3798.1,3797.9,2.63303]
[1717763821053,0.80456928,3798.3,3796.8,2.63378]
[1717763821054,0.53662661,3798.2,3797.6,2.63322]
[1717763821258,0.80456928,3797.7,3796.6,2.63388]
[1717763821458,0.80456928,3797.7,3795.1,0.75]
[1717763821459,0.5368806,3797.2,3796.2,2.63416]
[1717763821756,0.5368806,3797.0,3796.7,0.03466551]
[1717763821961,0.5368806,3796.9,3796.1,2.63423]
[1717763822215,0.13414499,3796.8,3796.1,2.63423]
[1717763822353,0.13414499,3796.8,3796.3,2.63413]
[1717763822561,0.5368806,3796.5,3796.3,2.63413]
[1717763822781,0.5368806,3796.9,3796.4,0.03159995]
[1717763822994,0.5368806,3797.1,3796.5,2.63399]
[1717763823197,0.5368806,3797.1,3795.0,5.05093]
[1717763823399,0.5368806,3797.1,3796.6,0.03486313]
[1717763823603,0.5368806,3797.1,3796.1,2.63422]
[1717763823604,0.5368806,3796.9,3796.1,2.63422]
[1717763823805,0.5368806,3796.9,3796.7,0.03166955]
[1717763824017,0.5368806,3796.9,3796.4,2.63402]
[1717763824170,0.7753302,3796.9,3795.0,2.4159]
[1717763824377,3.67693608,3796.7,3796.5,0.03172127]
[1717763824692,3.67693608,3796.7,3795.5,2.63465]
[1717763824693,3.97561723,3796.7,3795.5,2.63465]
[1717763825006,0.53632168,3796.4,3795.5,2.63465]
[1717763825205,1.04105544,3796.4,3795.6,0.0292776]
[1717763825505,0.53632168,3796.3,3795.5,2.63465]
[1717763825807,2.63444,3795.9,3794.5,2.63536]
[1717763825961,0.53632168,3795.7,3794.0,2.4086]
[1717763826167,0.53632168,3795.9,3795.4,2.63474]
[1717763826364,0.53632168,3796.2,3794.9,2.63508]
[1717763826613,2.6344,3796.0,3795.5,0.0292998]
[1717763826766,2.6344,3796.0,3794.4,2.6354]
[1717763827110,0.53632168,3795.2,3794.5,0.02725097]
[1717763827338,0.53632168,3795.3,3794.5,0.02725097]
[1717763827598,0.53632168,3795.3,3794.4,2.6354]
[1717763827817,0.53632168,3795.4,3794.4,2.6354]
[1717763828318,0.53632168,3795.6,3794.4,2.6354]
[1717763828615,0.6704021,3795.6,3794.4,2.6354]
[1717763828924,2.63491,3795.2,3793.1,2.4441]
[1717763829073,2.6352,3794.8,3793.5,2.63605]
[1717763829272,0.53632168,3794.6,3793.5,2.63605]
[1717763829475,2.63539,3794.5,3793.6,0.03845522]
[1717763829670,0.53632168,3794.6,3793.6,0.03845522]
[1717763829671,2.63556,3794.3,3793.6,0.03845522]
[1717763829877,2.63556,3794.3,3793.1,5.07245]
[1717763829878,0.53632168,3794.1,3793.1,5.07245]
[1717763830109,0.53632168,3794.1,3793.7,0.03458303]
[1717763830332,0.53632168,3794.1,3793.1,2.63635]
[1717763830594,0.53632168,3794.1,3792.2,2.4997]
[1717763830595,0.53632168,3794.0,3793.8,0.03455636]
[1717763830875,0.13408042,3794.0,3793.9,0.0345297]
[1717763831189,0.53632168,3794.0,3793.9,0.0345297]
[1717763831519,0.53632168,3794.0,3792.4,0.008]
[1717763831520,2.63633,3793.2,3792.4,0.008]
[1717763831674,2.63633,3793.2,3791.7,2.64229]
[1717763831877,0.53531246,3792.9,3791.7,2.64229]
[1717763832256,0.53531246,3793.1,3791.9,2.63716]
[1717763832516,0.93277358,3793.0,3791.9,2.63716]
[1717763832699,0.53531246,3793.0,3792.0,0.02405688]
[1717763833073,0.53531246,3793.2,3792.1,2.63703]
[1717763833272,0.53531246,3793.4,3792.1,2.66128049]
[1717763833526,0.53531246,3793.4,3792.5,2.63672]
[1717763833722,0.53531246,3793.4,3791.7,0.005]
[1717763833723,0.53531246,3793.7,3792.9,2.63645]
[1717763833933,0.53531246,3794.1,3792.9,2.63645]
[1717763834072,3.43852869,3794.3,3792.9,2.63645]
[1717763834073,0.53531246,3794.2,3793.0,0.02409039]
[1717763834278,0.53531246,3794.1,3792.9,2.63645]
[1717763834717,0.53531246,3794.3,3793.3,2.63618]
[1717763834935,3.97348115,3794.8,3793.3,2.63618]
[1717763834936,0.53531246,3794.7,3793.3,2.63618]
[1717763835121,1.07062492,3795.0,3794.1,2.63562]
[1717763835122,0.53531246,3795.0,3794.1,2.63562]
[1717763835433,0.53531246,3795.2,3794.1,2.63562]
[1717763835591,0.66914058,3795.2,3794.2,0.0236972]
[1717763835793,2.63512,3794.9,3793.8,2.63583]
[1717763836012,2.63543,3794.5,3793.3,2.63621]
[1717763836222,0.53531246,3794.9,3793.3,2.63621]
[1717763836420,3.38535,3794.6,3793.3,2.68550866]
[1717763836607,3.17066246,3794.6,3793.3,2.63621]
[1717763836939,0.53531246,3794.4,3793.3,2.67934633]
[1717763837102,0.53531246,3794.3,3793.3,0.04313633]
[1717763837303,0.53531246,3794.3,3792.3,0.008]
[1717763837304,2.6359,3793.8,3792.3,0.008]
[1717763837503,2.6359,3793.8,3791.7,0.005]
[1717763837504,2.63603,3793.6,3793.3,0.0383434]
[1717763837750,2.63632,3793.2,3792.1,0.008]
[1717763837891,2.6365,3792.9,3791.7,0.005]
[1717763838092,0.31715378,3792.8,3792.2,0.03163869]
[1717763838307,0.31715378,3792.8,3791.7,0.005]
[1717763838695,2.63668,3792.7,3791.7,0.005]
[1717763838891,2.63694,3792.3,3791.7,0.005]
[1717763839098,2.900634,3792.3,3791.7,0.005]
[1717763839410,2.900634,3792.3,3791.8,0.03173575]
[1717763839736,0.263694,3792.3,3791.8,0.03173575]
[1717763839940,2.63678,3792.5,3791.7,0.005]
[1717763840311,0.75,3792.5,3791.8,0.03490933]
[1717763840644,2.63714,3792.0,3791.8,0.03490933]
[1717763840853,2.4265,3792.7,3791.8,0.03490933]
[1717763840854,0.53503784,3792.3,3791.8,0.03490933]
[1717763840995,0.88375946,3792.2,3791.7,0.005]
[1717763841194,2.63708,3792.1,3791.7,0.005]
[1717763841594,2.63708,3792.1,3791.8,0.0290911]
[1717763841793,3.38708,3792.1,3791.8,0.0290911]
[1717763841993,3.38708,3792.1,3791.7,0.005]
[1717763842190,2.6372,3791.9,3791.7,0.005]
[1717763842628,2.63754,3791.4,3791.3,0.005]
[1717763842830,3.44009676,3791.4,3791.3,0.005]
[1717763843232,5.63754,3791.4,3791.3,0.005]
[1717763843734,5.62754,3791.4,3791.3,0.005]
[1717763843929,5.94469378,3791.4,3791.3,0.005]
[1717763844641,2.63819,3790.5,3789.5,0.008]
[1717763844828,2.63819,3790.5,3788.2,5.01203]
[1717763844829,3.0,3790.8,3789.6,0.02514525]
[1717763845027,3.0,3790.8,3787.4,2.3182]
[1717763845028,3.0,3790.8,3788.7,0.008]
[1717763845227,2.63848,3790.1,3787.9,0.008]
[1717763845458,2.63875,3789.7,3788.2,2.63974]
[1717763845769,0.263875,3789.6,3788.4,2.63959]
[1717763845975,2.6387,3789.8,3788.4,2.63959]
[1717763846185,2.6387,3789.8,3788.5,0.02541959]
[1717763846369,2.63891,3789.5,3788.4,2.63959]
[1717763846526,2.95606378,3789.5,3788.4,2.63959]
[1717763846726,2.63891,3789.5,3788.4,2.63959]
[1717763847425,2.63891,3789.5,3787.9,2.63994]
[1717763847631,2.63891,3789.5,3788.0,0.0255151]
[1717763847877,3.75,3790.8,3788.0,0.0255151]
[1717763847878,2.3601,3790.0,3788.0,0.0255151]
[1717763848174,2.3601,3790.0,3787.9,0.008]
[1717763848175,2.63979,3788.2,3787.9,0.008]
[1717763848333,2.63979,3788.2,3788.1,0.025496]
[1717763848655,2.64008,3787.8,3787.3,0.008]
[1717763848840,2.64051,3787.2,3787.0,2.0]
[1717763849055,2.64051,3787.2,3787.1,0.02397463]
[1717763849358,2.64051,3787.2,3787.0,2.0]
[1717763850051,2.64104,3786.4,3785.2,0.008]
[1717763850352,2.2552,3786.6,3784.6,0.008]
[1717763850353,2.64117,3786.2,3784.6,0.008]
[1717763850562,2.64117,3786.2,3784.5,0.008]
[1717763850856,2.64066,3787.0,3784.5,0.06083818]
[1717763851006,2.64066,3787.0,3785.0,2.642]
[1717763851206,2.64066,3787.0,3785.1,2.2694]
[1717763851207,0.75,3786.2,3785.1,2.2694]
[1717763851430,2.64066,3787.0,3785.1,2.2694]
[1717763851949,3.0,3787.7,3785.6,2.64158]
[1717763851950,2.64015,3787.7,3785.6,2.64158]
[1717763852147,3.39015,3787.7,3786.2,2.64116]
[1717763852353,0.75,3787.7,3786.4,2.64096]
[1717763852511,2.63929,3788.9,3786.5,2.3842]
[1717763852851,2.63843,3790.2,3787.9,2.63991]
[1717763853053,2.63879,3789.7,3788.0,0.263991]
[1717763853260,3.38879,3789.7,3788.0,0.02534706]
[1717763853560,3.38879,3789.7,3786.6,0.558]
[1717763853561,2.6396,3788.5,3786.6,0.008]
[1717763853709,2.6396,3788.5,3786.5,5.02509]
[1717763853910,3.962,3789.4,3786.5,5.02509]
[1717763853911,0.75,3788.2,3786.8,2.64072]
[1717763854118,2.63942,3788.8,3786.8,2.64072]
[1717763854369,3.231,3789.5,3786.5,2.3842]
[1717763854370,1.056493,3789.3,3787.1,2.64048]
[1717763854576,2.63913,3789.2,3786.9,2.64065]
[1717763854705,3.231,3788.8,3787.2,0.02547387]
[1717763855009,0.75,3789.3,3787.8,2.63998]
[1717763855216,0.75,3789.3,3787.8,2.903978]
[1717763855439,0.75,3789.3,3787.9,0.02417109]
[1717763855649,2.63904,3789.3,3787.9,0.02417109]
[1717763855813,3.231,3789.5,3787.9,0.02417109]
[1717763856014,2.63902,3789.3,3787.9,0.02417109]
[1717763856218,2.63902,3789.3,3787.7,2.64007]
[1717763856219,0.75,3789.0,3787.7,2.64007]
[1717763856409,2.63902,3789.3,3787.7,2.64007]
[1717763856880,2.63902,3789.3,3787.8,0.02418163]
[1717763857014,2.63902,3789.3,3788.0,2.63987]
[1717763857468,2.63902,3789.3,3788.1,0.02412813]
[1717763857640,3.231,3789.7,3788.2,2.63977]
[1717763858048,0.75,3789.7,3788.3,0.02409247]
[1717763858451,2.63854,3790.0,3788.4,2.6396]
[1717763858751,2.63854,3790.0,3787.1,5.1036]
[1717763858752,2.63848,3790.1,3788.5,0.02405681]
[1717763859048,2.63848,3790.1,3787.4,3.0]
[1717763859049,2.63848,3790.1,3788.6,2.63943]
[1717763859261,5.86959,3789.9,3788.6,2.63943]
[1717763859415,5.86959,3789.9,3788.7,0.02402116]
[1717763859614,2.63859,3789.9,3788.7,0.02402116]
[1717763859815,2.63859,3789.9,3787.2,3.0]
[1717763860051,2.63895,3789.4,3788.8,0.02400333]
[1717763860321,3.231,3789.7,3788.0,2.6399]
[1717763860322,2.63918,3789.1,3788.0,2.6399]
[1717763860633,2.63918,3789.1,3788.9,0.02398551]
[1717763860870,2.63918,3789.1,3788.0,2.6399]
[1717763861047,2.63918,3789.1,3787.1,2.3326]
[1717763861048,2.63918,3789.1,3787.3,2.64034]
[1717763861249,2.63946,3788.7,3788.1,0.02412813]
[1717763861417,2.63973,3788.3,3786.8,2.64071]
[1717763861621,0.75,3788.7,3786.2,2.3471]
[1717763861622,2.64001,3787.9,3786.3,2.64107]
[1717763861816,2.64001,3787.9,3786.9,0.02434217]
[1717763862064,3.231,3788.1,3786.3,2.64107]
[1717763862065,2.64033,3787.4,3786.3,2.64107]
[1717763862282,2.64033,3787.4,3786.1,0.1257145]
[1717763862283,2.64065,3787.0,3786.1,0.1257145]
[1717763862548,0.264033,3787.3,3786.2,2.64111]
[1717763862744,2.64028,3787.5,3786.2,2.64111]
[1717763863136,2.64055,3787.1,3786.1,0.1257145]
[1717763863520,0.75,3786.9,3786.1,0.1257145]
[1717763863848,2.6408,3786.8,3786.1,0.1257145]
[1717763864756,2.64109,3786.4,3786.1,0.1257145]
[1717763865060,0.74894282,3786.5,3786.1,0.1257145]
[1717763865361,2.64038,3787.4,3786.1,2.7669445]
[1717763865560,2.64038,3787.4,3786.5,2.64095]
[1717763865762,2.64005,3787.9,3786.5,2.64095]
[1717763866061,3.231,3787.3,3786.1,2.7669445]
[1717763866225,3.231,3787.3,3786.1,0.1257145]
[1717763866624,2.64058,3787.1,3786.1,0.1257145]
[1717763866949,0.75,3786.5,3786.1,2.7669045]
[1717763867152,0.75,3786.5,3786.1,0.1257145]
[1717763867348,2.64083,3786.7,3786.1,0.1257145]
[1717763867661,2.64108,3786.4,3786.1,0.1257145]
[1717763867891,2.64117,3786.2,3786.1,0.1257145]
[1717763868044,2.64117,3786.2,3784.4,2.334]
[1717763868045,2.64188,3785.2,3784.4,0.008]
[1717763868362,2.64188,3785.2,3783.8,2.64279]
[1717763868547,2.64215,3784.8,3784.5,0.23905805]
[1717763868767,2.64215,3784.8,3783.4,4.92461]
[1717763869122,2.64215,3784.8,3784.1,0.2446434]
[1717763869357,3.231,3786.3,3784.7,0.24394516]
[1717763869569,3.231,3786.3,3784.6,2.64228]
[1717763869570,2.64158,3785.7,3784.6,2.64228]
[1717763869772,2.64178,3785.4,3784.2,2.64255]
[1717763869938,2.64156,3785.7,3784.3,0.23905805]
[1717763870136,3.0,3786.2,3784.2,2.64251]
[1717763870137,2.64165,3785.5,3784.2,2.64251]
[1717763870356,3.0,3786.2,3783.5,0.013]
[1717763870357,0.75,3785.1,3784.6,2.64226]
[1717763870631,0.75,3785.1,3783.5,0.005]
[1717763870826,0.75,3785.1,3784.0,84.11711085]
[1717763871131,2.64172,3785.5,3784.0,84.11711085]
[1717763871331,2.64206,3785.0,3784.0,81.47445085]
[1717763871533,3.231,3785.8,3784.0,81.47445085]
[1717763871534,2.64189,3785.2,3784.0,81.47445085]
[1717763871842,2.64221,3784.8,3784.0,81.47445085]
[1717763872158,2.64248,3784.4,3784.0,81.47445085]
[1717763872357,3.0,3784.7,3784.0,81.47445085]
[1717763872857,0.75,3784.8,3784.0,81.47445085]
[1717763873033,3.0,3785.7,3784.0,81.47445085]
[1717763873377,2.64238,3784.5,3784.0,81.47445085]
[1717763873887,0.75,3784.1,3784.0,81.47445085]
[1717763874193,2.64238,3784.5,3784.0,81.47445085]
[1717763874486,0.26961076,3785.7,3784.1,2.65030545]
[1717763874662,2.3037,3786.6,3784.0,81.47445085]
[1717763874663,2.771,3786.2,3784.0,81.47445085]
[1717763875011,2.64238,3784.5,3784.0,81.47445085]
[1717763875276,2.64251,3784.3,3784.0,81.47445085]
[1717763875506,2.64251,3784.3,3784.0,79.02370697]
[1717763875507,3.21385611,3784.3,3784.0,79.02370697]
[1717763875635,3.231,3784.1,3784.0,78.75396929]
[1717763875833,3.981,3784.1,3784.0,78.75396929]
[1717763876197,6.981,3784.1,3784.0,68.51796929]
[1717763876339,7.55234611,3784.1,3784.0,62.52134074]
[1717763876845,2.64326,3783.2,3783.1,7.1e-06]
[1717763877169,5.87429,3783.2,3782.3,0.26769543]
[1717763877375,0.57134611,3783.6,3781.7,0.1022403]
[1717763877376,3.231,3782.4,3781.7,0.1022403]
[1717763877530,2.64398,3782.2,3781.7,0.1022403]
[1717763877733,2.59398,3782.2,3781.7,0.1022403]
[1717763878340,1.32126577,3782.0,3779.2,3.18600385]
[1717763878540,3.231,3780.2,3779.2,3.18600385]
[1717763878855,3.231,3781.6,3780.1,2.4916]